Cogmind - Beta 17.1 @@@ ROGUE MODE // 2026.09.01 @ 16:31:06 Player: Lazz Result: Destroyed by S-27 Virus with Autogun Performance ------------- Evolutions (4) 2000 Regions Visited (8) 1600 Robots Destroyed (58) 290 Value Destroyed (3068) 3068 Prototype IDs (2) 40 Alien Tech Used (0) 0 Bonus (1534) 1534 TOTAL SCORE: 8532 Bonus ------- High Alert Combat Kills 73 Follower Combat Kills 61 Entered Garrisons 400 Used RIF Installer 1000 Cogmind --------- Core Integrity 0/850 Matter 51/300 Energy 99/100 System Corruption 5% Temperature Cool (9) Movement Core (50) Location -6/Factory Parts ------- > --- POWER (1) -------- (None) > --- PROPULSION (5) --- (None) > --- UTILITY (7) ------ (None) > --- WEAPON (2) ------- (None) > --- INVENTORY (5) ---- Fission Core Plasma Rifle Plasma Cutter Power Maul Power Maul Peak State ------------ > --- POWER ------------ Micro Fission Core > --- PROPULSION ------- Medium Treads Titanium Leg Armored Wheel > --- UTILITY ---------- Improved Cooling System Advanced Terrain Scan Processor Phase Shifter Experimental Power Shielding Thermal Shield Relay Coupler [Sentry] Relay Coupler [Sentry] > --- WEAPON ----------- Heavy Mass Driver > --- INVENTORY -------- Fission Core Plasma Rifle Plasma Cutter Power Maul Power Maul [Rating: 61] Favorites ----------- Power Light Nuclear Core Engine Reinforced Deuterium Engine Power Core Light Nuclear Core Propulsion VTOL Module Treads Light Treads Leg Aluminum Leg Wheel Compact Wheel Hover Unit Gravmag System Flight Unit VTOL Module Utility Relay Coupler [Grunt] Device Improved Heat Sink Storage Small Storage Unit Processor Target Analyzer Hackware Relay Coupler [Grunt] Protection Light Armor Plating Weapon Medium Laser Energy Gun Medium Laser Energy Cannon Improved EM Pulse Cannon Ballistic Gun Heavy Assault Rifle Ballistic Cannon Heavy Mass Driver Launcher Rocket Launcher Special Weapon Mining Laser Special Melee Weapon Improved Datajack Build | -11 -10 -9 -9 -9 -9 -7 -7 -6 ------- Run | Yrd Mat Mat Sto Gar Rec Fac Gar Fac Slots Evolved 8 | . . 2 . . . 4 . 2 Power . | . . . . . . . . . Propulsion 3 | . . 1 . . . 1 . 1 Utility 5 | . . 1 . . . 3 . 1 Weapon . | . . . . . . . . . Parts Attached 91 | 7 7 2 . 10 14 4 33 14 Power 9 | 1 1 . . 1 1 . 3 2 Engine 3 | 1 . . . . 1 . 1 . Core 6 | . 1 . . 1 . . 2 2 Reactor . | . . . . . . . . . Propulsion 30 | 2 1 1 . 4 5 1 12 4 Treads 4 | 2 . 1 . . . . . 1 Leg 16 | . . . . 4 5 1 5 1 Wheel 3 | . 1 . . . . . . 2 Hover 1 | . . . . . . . 1 . Flight 6 | . . . . . . . 6 . Utility 28 | 2 1 1 . 3 4 2 10 5 Device 12 | 1 1 . . 2 1 1 3 3 Storage 1 | 1 . . . . . . . . Processor 4 | . . . . . 1 1 1 1 Hackware 7 | . . . . 1 1 . 5 . Protection 4 | . . 1 . . 1 . 1 1 Artifact . | . . . . . . . . . Weapon 24 | 2 4 . . 2 4 1 8 3 Energy Gun 11 | 2 4 . . 1 . 1 3 . Energy Cannon 3 | . . . . . . . 1 2 Ballistic Gun 4 | . . . . . 3 . 1 . Ballistic Cannon 3 | . . . . . . . 2 1 Launcher 1 | . . . . . 1 . . . Special Weapon 1 | . . . . 1 . . . . Impact Weapon . | . . . . . . . . . Slashing Weapon . | . . . . . . . . . Piercing Weapon . | . . . . . . . . . Special Melee Weapon 1 | . . . . . . . 1 . Unidentified Prototypes 2 | . . . . . . . 1 1 Corrupted Parts 1 | . . . . . 1 . . . System Corruption 1 | . . . . . 1 . . . Parts Lost 60 | . 4 . . 2 16 . 28 10 Power 4 | . . . . . 3 . 1 . Propulsion 26 | . 1 . . 1 5 . 16 3 Utility 18 | . 1 . . 1 4 . 7 5 Weapon 12 | . 2 . . . 4 . 4 2 Highest Loss Streak 15 | . 3 . . 1 15 . 8 9 To Critical Strikes . | . . . . . . . . . Average Backups 4 | 2 5 8 8 6 5 5 3 4 Power . | . . 1 1 1 . . . 1 Propulsion . | . . . . . . 1 . . Utility 1 | 1 2 3 3 2 2 1 . . Weapon 2 | . 2 4 4 2 2 2 1 2 Tool/Special . | . . . . . . . . . Unused Backups 16 | . . 1 . 6 1 1 2 5 Power 1 | . . . . . . . . 1 Propulsion 1 | . . . . . . . 1 . Utility 3 | . . . . 3 . . . . Weapon 10 | . . 1 . 3 1 1 1 3 Tool/Special 1 | . . . . . . . . 1 Average Slot Usage (%) 75 | . 93 85 100 89 69 68 76 49 Engine 1 | . 6 . . . . . 3 . Core 5 | . 7 11 11 11 8 . 2 3 Treads 4 | . 24 15 22 13 . . . 1 Leg 9 | . . . . 2 21 26 9 4 Wheel 3 | . . 11 11 10 . . . 5 Flight 6 | . . . . . . . 16 . Device 8 | . 12 11 11 10 10 11 5 7 Storage 4 | . 14 11 11 11 6 . . . Processor 2 | . . . . . . . 6 3 Hackware 9 | . . . . 4 1 7 16 14 Protection 2 | . . 3 11 3 1 7 2 1 Energy Gun 8 | . 26 22 22 17 7 . 4 . Ballistic Gun 2 | . . . . . 8 13 1 . Ballistic Cannon 1 | . . . . . . . 2 4 Special Weapon 1 | . . . . 4 3 . . . Special Melee Weapon 1 | . . . . . . . 3 . Peak Build Rating 61 | 7 12 14 14 17 17 24 59 61 Average Rating 27 | 5 8 12 14 13 12 19 46 36 On Entrance 12 | . 7 12 14 14 17 15 24 13 Avg Prop Armor Cover (%) 11 | . 14 15 17 11 . 9 9 10 Naked Turns 84 | . . . . . 27 . . 57 Heaviest Build 39 | 14 15 18 18 19 16 12 39 31 Greatest Support 58 | 40 40 16 16 36 36 54 58 12 Greatest Overweight (x) 10 | . . 1 1 1 1 . 6 10 Average Overweight (x) . | . . . 1 . . . . 1 Largest Inventory Capacity 8 | 8 8 8 8 8 8 5 5 5 Average Capacity 6 | 7 8 8 8 8 6 5 5 5 Most Carried 8 | 4 8 8 8 8 8 5 5 5 Average Carried 5 | 2 5 8 8 7 6 5 4 4 Final Capacity 8 | 8 8 8 8 8 5 5 5 5 Final Carried 8 | 4 8 8 8 8 5 5 5 5 Class Distribution -------------------- 51% | Mutant 27% | Scavenger-Mutant 14% | Scavenger-Assassin 3% | Scavenger-Skirmisher Dominant Class ---------------- Mutant | -10/Materials Mutant | -9/Materials Mutant | -9/Storage Mutant | -9/Garrison Mutant | -9/Recycling Mutant | -7/Factory Scavenger-Assassin | -7/Garrison Mutant | -6/Factory Resources | -11 -10 -9 -9 -9 -9 -7 -7 -6 ----------- Run | Yrd Mat Mat Sto Gar Rec Fac Gar Fac Matter Collected 1613 | 270 45 40 . 180 165 . 757 156 Remotely . | . . . . . . . . . Salvage Created 2219 | 210 196 58 . 489 254 . 649 363 Parts 121 | 18 11 4 . 13 10 . 43 22 Haulers Intercepted 1 | . . . . . . . . 1 Recyclers Shooed 2 | 1 . . . . . . . 1 Parts Field Recycled . | . . . . . . . . . Retrieved Matter . | . . . . . . . . . Parts Self-Destructed . | . . . . . . . . . Prevented . | . . . . . . . . . Parts Restored . | . . . . . . . . . Kills | -11 -10 -9 -9 -9 -9 -7 -7 -6 ------- Run | Yrd Mat Mat Sto Gar Rec Fac Gar Fac Combat Hostiles Destroyed 46 | . 5 1 . 9 3 . 22 6 Melee 1 | . . . . . 1 . . . Guns 20 | . 5 1 . 8 1 . 5 . Cannons 23 | . . . . . 1 . 16 6 Classes Destroyed 15 | 3 1 1 . 2 1 . 3 4 Worker 2 | 2 . . . . . . . . Builder 1 | . . . . . . . . 1 Tunneler 5 | 5 . . . . . . . . Hauler 1 | . . . . . . . . 1 Recycler 2 | 1 . . . . 1 . . . Operator 1 | . . . . . . . 1 . Swarmer 12 | . . . . . . . 12 . Grunt 17 | . 5 . . 7 . . 4 1 Duelist 3 | . . . . 1 . . 2 . Sentry 5 | . . 1 . . 1 . 1 2 Specialist 2 | . . . . . . . . 2 Hunter 2 | . . . . . . . 2 . Programmer 2 | . . . . 1 . . 1 . Heavy 1 | . . . . . . . . 1 Scrapper 2 | . . . . . 2 . . . Best Kill Streak 10 | 3 2 1 . 3 2 . 10 2 Combat Bots Only 10 | . 2 1 . 3 1 . 10 2 Max Kills in Single Turn 1 | 1 1 1 . 1 1 . 1 1 Gunslinging . | . . . . . . . . . Exploded . | . . . . . . . . . Melee 1 | . . . . . 1 . . . Uniques/NPCs Destroyed . | . . . . . . . . . Combat | -11 -10 -9 -9 -9 -9 -7 -7 -6 -------- Run | Yrd Mat Mat Sto Gar Rec Fac Gar Fac Hostile Shots Fired 670 | . 59 2 . 41 87 30 264 187 Missed 223 | . 10 . . 9 29 12 87 76 Hits 447 | . 49 2 . 32 58 18 177 111 Melee 15 | . . . . . . . 15 . Projectile 432 | . 49 2 . 32 58 18 162 111 Critical Strikes 19 | . 2 1 . . 5 1 7 3 Part Disruptions 4 | . . . . . . . . 4 Damage Taken 7205 | . 674 30 . 362 1333 202 2611 1993 Core 1881 | . 146 . . 12 272 17 576 858 Absorbed by Shields 58 | . . . . . . . 58 . Redirected to Shielding 123 | . . . . . . . 37 86 Ignored by Resistances 12 | . . . . . . . . 12 Core Remaining (%) 46 | 100 41 . . . 29 . 15 . Volleys Fired 231 | 23 21 1 . 74 15 . 62 35 Largest 2 | 2 2 2 . 2 2 . 2 2 Hottest 155 | 90 100 100 . 100 140 . 155 138 Shots Fired 343 | 45 37 2 . 118 23 . 77 41 Gun 225 | 45 37 2 . 88 15 . 38 . Cannon 80 | . . . . . . . 39 41 Launcher 2 | . . . . . 2 . . . Special 36 | . . . . 30 6 . . . Kinetic 79 | . . . . . 9 . 42 28 Thermal 249 | 45 37 2 . 118 12 . 35 . Explosive 2 | . . . . . 2 . . . Electromagnetic 13 | . . . . . . . . 13 Robot Hit Streak 19 | 7 13 10 . 19 12 . 10 7 Robot Miss Streak 4 | 3 2 . . 2 2 . 4 2 Penetration Max . | . . . . . . . . . Secondary Targets 1 | . . . . . . . 1 . Max Gunslinging Chain 1 | . . . . . . . 1 . Shots Hit Robots 236 | 28 30 2 . 83 13 . 51 29 Core Hits 107 | 9 11 2 . 29 15 . 28 13 Critical Kills . | . . . . . . . . . Critical Parts Destroyed . | . . . . . . . . . Critical Strikes 19 | . . . . 7 . . 11 1 Burn 11 | . . . . 7 . . 4 . Blast 8 | . . . . . . . 7 1 Melee Attacks 5 | . . . . . . . 5 . Impact . | . . . . . . . . . Slashing . | . . . . . . . . . Piercing . | . . . . . . . . . Sneak Attacks . | . . . . . . . . . Combat Hostiles . | . . . . . . . . . Follow-up Attacks . | . . . . . . . . . Damage Inflicted 6120 | 364 356 32 . 1307 404 . 2033 1624 Guns 2317 | 364 356 26 . 899 136 . 536 . Cannons 3042 | . . . . . . . 1497 1545 Explosions 179 | . . . . . 125 . . 54 Melee . | . . . . . . . . . Ramming 102 | . . 6 . . 71 . . 25 Kinetic 2825 | . . . . . 78 . 1499 1248 Thermal 2771 | 364 356 26 . 1307 130 . 534 54 Explosive 125 | . . . . . 125 . . . Electromagnetic 297 | . . . . . . . . 297 Impact . | . . . . . . . . . Slashing . | . . . . . . . . . Piercing . | . . . . . . . . . Highest Corruption 5 | . . . . . 5 . 2 5 Average Corruption 2 | . . . . . 4 . 1 4 Corruption Purged . | . . . . . . . . . Corruption Blocked . | . . . . . . . . . Effects 45 | . . . . . 10 . 26 9 Message Errors 8 | . . . . . 2 . 2 4 Matter Fused 7 | . . . . . . . 6 1 Heat Flow Errors 10 | . . . . . 3 . 4 3 Energy Discharges 7 | . . . . . 1 . 6 . Data Loss (minor) 7 | . . . . . 3 . 3 1 Data Loss (major) 2 | . . . . . . . 2 . Misfires 3 | . . . . . 1 . 2 . Alerts 1 | . . . . . . . 1 . Overload Shots . | . . . . . . . . . Overflow Damage 251 | . . . . . 13 . 134 104 Projectiles 238 | . . . . . . . 134 104 Explosions 13 | . . . . . 13 . . . Melee . | . . . . . . . . . Knockbacks 15 | . . . . . 2 . 4 9 Impact 2 | . . . . . 2 . . . Kinetic 12 | . . . . . . . 4 8 Secondary 1 | . . . . . . . . 1 Self-Inflicted Damage 106 | . . 3 . . 91 . . 12 Shots 2 | . . . . . 2 . . . Rammed 12 | . . 1 . . 9 . . 2 Targets Rammed 32 | . . 1 . . 29 . . 2 Kicked 20 | . . . . . 20 . . . Crushed . | . . . . . . . . . Highest Temperature 475 | 240 404 . . 264 266 . 475 168 Average Temperature 93 | 105 196 . . 46 67 . 88 28 Received Heat Transfer 1904 | . 390 27 . 168 760 54 337 168 Effects 7 | . 5 . . . . . 2 . Shutdowns 2 | . 1 . . . . . 1 . Energy Bleed 3 | . 3 . . . . . . . Interference 1 | . 1 . . . . . . . Damage (minor) 1 | . . . . . . . 1 . Siege Activations . | . . . . . . . . . Martial Activations . | . . . . . . . . . Shielding Activations . | . . . . . . . . . Robots Disrupted . | . . . . . . . . . Combat Hostiles . | . . . . . . . . . Robots Corrupted . | . . . . . . . . . Combat Hostiles . | . . . . . . . . . Parts Fried 2 | . . . . . . . . 2 Impact Corruptions 1 | . . . . . 1 . . . Robots Melted 4 | . . . . 3 . . 1 . Combat Hostiles 2 | . . . . 1 . . 1 . Parts Melted 8 | 1 1 . . 5 . . 1 . Heat Transferred 7755 | 979 978 74 . 3884 229 . 1511 100 Parts Sabotaged . | . . . . . . . . . Parts Stolen . | . . . . . . . . . Parts Stripped . | . . . . . . . . . Power Chain Reactions 1 | . . . . . . . . 1 Alert | -11 -10 -9 -9 -9 -9 -7 -7 -6 ------- Run | Yrd Mat Mat Sto Gar Rec Fac Gar Fac Maximum Alert Level 3 | . . . . 2 . . 3 1 Low Security (%) 45 | 100 100 100 100 33 100 100 22 5 Level 1 26 | . . . . 50 . . 8 94 Level 2 24 | . . . . 15 . . 61 . Level 3 2 | . . . . . . . 7 . Level 4 . | . . . . . . . . . Level 5 . | . . . . . . . . . High Security . | . . . . . . . . . Max Security . | . . . . . . . . . Peak Influence 786 | 10 40 30 3 414 186 150 786 396 Initial 396 | . . . 3 4 186 150 84 396 Average 251 | 1 12 10 3 232 36 136 450 263 Influence Increases 2128 | 40 120 30 4 430 25 150 1012 317 Destroy 0b10 Robot/C 920 | . 100 20 . 180 20 . 480 120 Destroy 0b10 Robot/NC 80 | 40 . . . 15 5 . 10 10 Destroy Leader 102 | . 20 10 . 10 . . 20 42 Allied During Kill 6 | . . . . . . . 6 . Trap Triggered on 0b10 30 | . . . . 30 . . . . Successful Hack 4 | . . . 4 . . . . . Disable Machine 90 | . . . . 45 . . 30 15 Anti-Garrison Action 450 | . . . . 100 . . 350 . Destroy Structure 86 | . . . . 20 . . 56 10 Advance Influence 150 | . . . . . . 150 . . Lose Combat Pursuer 210 | . . . . 30 . . 60 120 Influence Decreases 1871 | 40 120 20 7 23 439 30 376 816 Entered New Map 634 | . . . 7 3 228 . 36 360 Time Decay 711 | 40 100 20 . . 165 30 . 356 Lost Part 420 | . 20 . . 20 . . 280 100 Lost Ally 60 | . . . . . . . 60 . Purge Threat 46 | . . . . . 46 . . . Squads Dispatched 8 | . 1 . . . . . . 7 Investigation 1 | . . . . . . . . 1 Extermination 1 | . . . . . . . . 1 Reinforcement 6 | . 1 . . . . . . 5 Assault . | . . . . . . . . . Garrison . | . . . . . . . . . Intercept . | . . . . . . . . . Searches Triggered . | . . . . . . . . . Construction Impeded 1 | . . . . . . . . 1 Haulers Reinforced . | . . . . . . . . . Active Scanning Responses 1 | . . . . . . . 1 . Cargo Convoy Interrupts . | . . . . . . . . . Stealth | -11 -10 -9 -9 -9 -9 -7 -7 -6 --------- Run | Yrd Mat Mat Sto Gar Rec Fac Gar Fac Distress Signals 3 | . . . . . . . 1 2 Communications Jammed . | . . . . . . . . . Distress Signals . | . . . . . . . . . Times Spotted 95 | . 6 2 . 11 8 2 36 30 Peak Tracking Total 13 | . 5 1 . 3 5 2 8 13 Tactical Retreats 11 | . . . . 2 2 . 4 3 Traps | -11 -10 -9 -9 -9 -9 -7 -7 -6 ------- Run | Yrd Mat Mat Sto Gar Rec Fac Gar Fac Traps Triggered 8 | . 1 . . 1 . . 5 1 Indirectly . | . . . . . . . . . Trap Hack Attempts 1 | . . . . . . . 1 . Triggered . | . . . . . . . . . Disarmed . | . . . . . . . . . Reprogrammed . | . . . . . . . . . Reused 4 | . . . . 3 1 . . . Traps Extracted . | . . . . . . . . . Installed 7 | . . . . 5 2 . . . Triggered 3 | . . . . 3 . . . . Most Traps Carried 4 | . . . . 4 2 . . . Machines | -11 -10 -9 -9 -9 -9 -7 -7 -6 ---------- Run | Yrd Mat Mat Sto Gar Rec Fac Gar Fac Machines Disabled 14 | . . . . 5 . . 8 1 Max in Single Turn 2 | . . . . 1 . . 2 1 Garrison Relay 4 | . . . . 2 . . 2 . Phase Generator 1 | . . . . . . . 1 . Machines Repaired . | . . . . . . . . . Machines Dismantled . | . . . . . . . . . Machines Sabotaged . | . . . . . . . . . Overloaded Fab Kills . | . . . . . . . . . Hacking | -11 -10 -9 -9 -9 -9 -7 -7 -6 --------- Run | Yrd Mat Mat Sto Gar Rec Fac Gar Fac Machines Accessed 14 | . 1 1 1 2 6 1 . 2 Terminals 11 | . 1 1 . 2 5 . . 2 Fabricators . | . . . . . . . . . Repair Stations . | . . . . . . . . . Recycling Units 1 | . . . . . 1 . . . Scanalyzers . | . . . . . . . . . Garrison Access 2 | . . . 1 . . 1 . . Total Hacks 32 | . 4 2 1 6 15 1 . 3 Successful 10 | . 1 1 1 1 4 1 . 1 Failed 21 | . 2 1 . 5 11 . . 2 Catastrophic 7 | . . . . 2 3 . . 2 Database Lockouts 1 | . 1 . . . . . . . Manual 13 | . 4 2 . . 7 . . . Terminals 27 | . 4 2 . 6 12 . . 3 Fabricators . | . . . . . . . . . Repair Stations . | . . . . . . . . . Recycling Units 3 | . . . . . 3 . . . Scanalyzers . | . . . . . . . . . Garrison Access 2 | . . . 1 . . 1 . . Terminal Hacks 6 | . 1 1 . 1 2 . . 1 Robot Analysis 3 | . 1 1 . . 1 . . . Open DSF 1 | . . . . . . . . 1 Unreport Threat 1 | . . . . . 1 . . . Garrison Registry 1 | . . . . 1 . . . . Fabricator Hacks . | . . . . . . . . . Repair Station Hacks . | . . . . . . . . . Recycling Unit Hacks 2 | . . . . . 2 . . . Report Inventory 1 | . . . . . 1 . . . Retrieve Components 1 | . . . . . 1 . . . Scanalyzer . | . . . . . . . . . Garrison Access Hacks 2 | . . . 1 . . 1 . . Unlock Access 2 | . . . 1 . . 1 . . Unauthorized Hacks . | . . . . . . . . . Terminals . | . . . . . . . . . Fabricators . | . . . . . . . . . Repair Stations . | . . . . . . . . . Recycling Units . | . . . . . . . . . Scanalyzers . | . . . . . . . . . Garrison Access . | . . . . . . . . . Data Cores Recovered . | . . . . . . . . . Used . | . . . . . . . . . Hacking Detections 13 | . 1 1 . 2 6 1 . 2 Full Trace Events 4 | . . . . . 3 . . 1 Feedback Events 1 | . . . . . . . . 1 Corruption 1 | . . . . . . . . 1 Feedback Blocked . | . . . . . . . . . Robot Schematics Acquired . | . . . . . . . . . Robots Built . | . . . . . . . . . Authchips . | . . . . . . . . . Time . | . . . . . . . . . Total Robot Build Rating . | . . . . . . . . . Part Schematics Acquired . | . . . . . . . . . Parts Built . | . . . . . . . . . Authchips . | . . . . . . . . . Time . | . . . . . . . . . Total Part Build Rating . | . . . . . . . . . Part Studies Acquired . | . . . . . . . . . Parts Repaired . | . . . . . . . . . Time . | . . . . . . . . . Parts Recycled . | . . . . . . . . . Recycled Matter . | . . . . . . . . . Retrieved Matter . | . . . . . . . . . Retrieved Components 3 | . . . . . 3 . . . Parts Scanalyzed . | . . . . . . . . . Part Schematics Acquired . | . . . . . . . . . Parts Damaged . | . . . . . . . . . Bothacking | -11 -10 -9 -9 -9 -9 -7 -7 -6 ------------ Run | Yrd Mat Mat Sto Gar Rec Fac Gar Fac Used RIF Installer 2 | . . . . 1 . . 1 . Command Fork 1 | . . . . . . . 1 . Robots Hacked 4 | . . . . . . . 4 . Non-combat . | . . . . . . . . . Combat 4 | . . . . . . . 4 . Robot Hacks Applied 4 | . . . . . . . 4 . parse_system 1 | . . . . . . . 1 . formatsys_high 3 | . . . . . . . 3 . Relay Couplers Released 16 | . . . . 10 . . 6 . Machine Destruction 13 | . . . . 7 . . 6 . Programmers 3 | . . . . 3 . . . . Attached 7 | . . . . 1 1 . 5 . Fabnet Peak Effective % . | . . . . . . . . . Robots Rewired . | . . . . . . . . . Allies Hacked . | . . . . . . . . . Hacks Repelled . | . . . . . . . . . Allies | -11 -10 -9 -9 -9 -9 -7 -7 -6 -------- Run | Yrd Mat Mat Sto Gar Rec Fac Gar Fac Total Allies 3 | . . . . . . . 3 . Largest Group 2 | . . . . . . . 2 . Highest-Rated Group 48 | . . . . . . . 48 . Highest-Rated Ally 32 | . . . . . . . 32 . Total Orders . | . . . . . . . . . Ally Attacks 14 | . . . . . . . 14 . Total Damage 259 | . . . . . . . 259 . Kills 3 | . . . . . . . 3 . Allies Corrupted . | . . . . . . . . . Allies Melted . | . . . . . . . . . Intel | -11 -10 -9 -9 -9 -9 -7 -7 -6 ------- Run | Yrd Mat Mat Sto Gar Rec Fac Gar Fac Active Infowar (turns) 1726 | 7 88 . . 174 339 . 1118 . A.S.S. 1118 | . . . . . . . 1118 . Seismic 608 | 7 88 . . 174 339 . . . Robot Analysis Total 3 | . 1 1 . . 1 . . . Derelict Logs Recovered . | . . . . . . . . . Drone Launches . | . . . . . . . . . Drone Recoveries . | . . . . . . . . . Exploration | -11 -10 -9 -9 -9 -9 -7 -7 -6 ------------- Run | Yrd Mat Mat Sto Gar Rec Fac Gar Fac Turns Passed 5476 | 253 301 86 10 1050 957 72 1939 808 Spaces Moved 2996 | 101 141 51 8 547 651 43 852 602 Core 279 | 4 . . . . 75 . 40 160 Treads 422 | 97 127 . . 198 . . . . Legs 882 | . . . . 35 576 43 228 . Wheels 829 | . 14 51 8 314 . . . 442 Hover . | . . . . . . . . . Flight 584 | . . . . . . . 584 . Fastest Speed 50 | 50 100 100 115 100 50 120 50 50 Average Speed 123 | 155 154 107 115 128 124 120 131 96 Slowest Speed 550 | 160 160 115 115 190 190 120 515 550 Overloaded Moves . | . . . . . . . . . Propulsion Burnouts . | . . . . . . . . . Robots Hopped . | . . . . . . . . . Potential Cave-ins . | . . . . . . . . . Cave-ins Triggered . | . . . . . . . . . Exploration Rate (%) 27 | 4 24 7 7 37 87 2 62 17 Regions Visited 8 Branch Regions 2 Pre-discovered Areas . | . . . . . . . . . Known Exits Taken 2 | . . . 1 . . 1 . . Unknown Exits Taken 4 | 1 1 1 . . 1 . . . Scrap Searched . | . . . . . . . . . Spaces Dug . | . . . . . . . . . Terrain Destroyed 91 | . . . . . . . 80 11 Melee . | . . . . . . . . . Projectile 20 | . . . . . . . 9 11 AOE 71 | . . . . . . . 71 . Terrain Rammed . | . . . . . . . . . Walls Destroyed . | . . . . . . . . . Machines Disabled . | . . . . . . . . . Actions | -11 -10 -9 -9 -9 -9 -7 -7 -6 --------- Run | Yrd Mat Mat Sto Gar Rec Fac Gar Fac Total 4292 | 149 183 80 8 717 757 62 1571 765 Wait 771 | 14 13 24 . 45 30 11 526 108 Move 2989 | 100 140 50 8 546 650 43 850 602 Hop . | . . . . . . . . . Pick Up 36 | 5 1 1 . 12 6 1 8 2 Fast Attach 71 | 6 4 2 . 7 9 4 26 13 Attach 16 | 1 . . . 1 7 . 6 1 Detach 6 | . . . . . . 1 5 . Swap 25 | . 4 . . 11 4 . 5 1 Drop 37 | . . 1 . 16 5 2 12 1 Fire 231 | 23 21 1 . 74 15 . 62 35 Melee 5 | . . . . . . . 5 . Ram 12 | . . 1 . . 9 . . 2 Kick 20 | . . . . . 20 . . . Crush . | . . . . . . . . . Escape Stasis 65 | . . . . . . . 65 . Rewire . | . . . . . . . . . Trap 8 | . . . . 5 2 . 1 . Miscellaneous . | . . . . . . . . . Route ------- -11/Scrapyard -10/Materials -9/Materials -9/Storage -9/Garrison (discovered 3 exits: *Rec x3) -9/Recycling -7/Factory -7/Garrison (discovered 2 exits: *Fac x2) -6/Factory (discovered 1 exit: [*Low]) History --------- Turn | Location | Event 8 | -11/Scrapyard | Discovered new exit (range 14) 254 | -11/Scrapyard | Entered Materials 306 | -10/Materials | Build established: Mutant 363 | -10/Materials | Core integrity fell below 50% 395 | -10/Materials | Lost 3 parts (1u2w) 403 | -10/Materials | Central database locked down 508 | -10/Materials | Discovered new exit (range 8) 555 | -10/Materials | Entered another Materials area 555 | -9/Materials | Evolved 2 slots: Propulsion x1, Utility x1 573 | -9/Materials | Discovered new exit (range 16) 641 | -9/Materials | Entered Storage 651 | -9/Storage | Identified exit to Garrison 651 | -9/Storage | Entered Garrison 679 | -9/Garrison | Triggered checkpoint 728 | -9/Garrison | Discovered new exit (range 70) 728 | -9/Garrison | Discovered new exit (range 55) 728 | -9/Garrison | Discovered new exit (range 49) 959 | -9/Garrison | Triggered checkpoint 1070 | -9/Garrison | Installed Relay Interface Framework 1438 | -9/Garrison | Garrison Relay disabled 1536 | -9/Garrison | Garrison Relay disabled 1701 | -9/Garrison | Entered Recycling 1830 | -9/Recycling | Build established: Scavenger-Mutant 2114 | -9/Recycling | Scanned before Scraplab entrance 2131 | -9/Recycling | Angered Scraplab inhabitants 2197 | -9/Recycling | Core integrity fell below 50% 2269 | -9/Recycling | Lost 15 parts (2p5n4u4w) 2424 | -9/Recycling | Build established: Mutant 2640 | -9/Recycling | Discovered new exit (range 16) 2658 | -9/Recycling | Entered Factory 2658 | -7/Factory | Evolved 4 slots: Propulsion x1, Utility x3 2730 | -7/Factory | Identified exit to Garrison 2730 | -7/Factory | Entered Garrison 2828 | -7/Garrison | Triggered checkpoint 2885 | -7/Garrison | Lost 8 parts (3n4u1w) 3073 | -7/Garrison | Garrison Relay disabled 3138 | -7/Garrison | Triggered checkpoint 3138 | -7/Garrison | Triggered checkpoint 3158 | -7/Garrison | Build established: Scavenger-Mutant 3217 | -7/Garrison | Lost 7 parts (1p4n1u1w) 3218 | -7/Garrison | Destroyed 10 combat bots 3237 | -7/Garrison | Phase Generator disabled 3284 | -7/Garrison | Discovered new exit (range 10) 3312 | -7/Garrison | Triggered checkpoint 3376 | -7/Garrison | Lost 5 parts (3n2u) 3532 | -7/Garrison | Found Prototype Device 3532 | -7/Garrison | Identified Active Sensor Suite 3659 | -7/Garrison | Heavy support dispatched to Factory 3674 | -7/Garrison | Identified exit to Factory 3768 | -7/Garrison | Triggered checkpoint 3813 | -7/Garrison | Discovered exit to Factory (range 14) 3888 | -7/Garrison | Build established: Scavenger-Assassin 4031 | -7/Garrison | Heavy support dispatched to Factory 4172 | -7/Garrison | Core integrity fell below 50% 4430 | -7/Garrison | Expanded RIF knowledge: Command Fork 4447 | -7/Garrison | Garrison Relay disabled 4663 | -7/Garrison | Core integrity fell below 20% 4669 | -7/Garrison | Entered Factory 4669 | -6/Factory | Evolved 2 slots: Propulsion x1, Utility x1 4683 | -6/Factory | Lost 3 parts (2n1w) 4968 | -6/Factory | Build established: Mutant 5175 | -6/Factory | Discovered new exit (range 10) 5416 | -6/Factory | Lost 9 parts (3n4u2w) 5420 | -6/Factory | Released all parts (6) 5424 | -6/Factory | Core integrity fell below 50% 5443 | -6/Factory | Core integrity fell below 20% 5477 | -6/Factory | Destroyed by S-27 Virus with Autogun Last Messages --------------- 05420_ Released Imp. EM Pulse Cannon. 05420_ Released Exp. Power Shielding. 05420_ Released Mic. Fission Core. 05420_ Released Relay Coupler [Sentry]. 05420_ Released Imp. Cooling System. 05420_ Released Wheel. 05422_ Slammed into G-50 Soldier. 05422_ Destabilizing: Core damaged (-25). 05429_ System corrupted: Component data lost. 05430_ K-01 Serf destroyed. 05430_ P-60 Hacker resets M-28 Smith, system corruption cleaned. 05432_ K-01 Serf collects debris. 05437_ P-60 Hacker resets K-01 Serf, system corruption cleaned. 05438_ O-24 Administrator: "IFF HANDSHAKE FAILED. SECURING TERMINAL." 05447_ ALERT: Hostiles spotted, dispatching reinforcements to Terminal F014. 05472_ Connecting with DSF Access... Map ----- +----------------------------------------------------+ | ?????????????????????????????????????????????????? | | ?????????????????????????????????????????????????? | | ?????????????????????????????????????????????????? | | ?????????????????????????????????????????????????? | | ?????????????????????????????????????????????????? | | ?????????????????????????????????????????????????? | | ?????????????????????????????????????????????????? | | ##???????????????????????????????????????????????? | | #???????????????????????????????????????????????? | | #???????????????????????????????????????????????? | | #???????????????????????????????????????????????? | | #???????????????????????????????????????????????? | | #???????????????????????????????????????????????? | | #??? ??????????????????????????????????????????? | | #?? ??????????????????????????????????????????? | | #?? "??????????????????????????????????????? | | #?? """??????????????????????????????????????? | | #??? """??????????????????????????????????????? | | #???? ?????????????????? ???????????????????? | | #????? ????????????????? !???????????????????? | | #########+#################+#####????????????????? | | #????????????????? | | #????????????????? | | #????????????????? | | ##############???? | | @ # #???? | | g # """"" #???? | | g g xx # ""T"" #???? | | #########+############### # #???? | | #??????????????????????# # #???? | | =#??????????????????????# # """" """" #???? | | !#??????????????????????# # """" """" #???? | | #?????????????????????## + """" """" #???? | | #?????????????????????# # """" """" #???? | | #?????????????????????#T # """" """" #???? | | #?????????????????????## ss # """" """" #???? | | #??????????????????????# + #???? | | #???????????????????####+##s##########+######???? | | #???????????????????# #??# #????????? | | #???????????????????# #### #????????? | | #???????????????????# / #????????? | | ##???????????????????# !######????????? | | ?????????????????????# #?????????????? | | ?????????????????????# #?????????????? | | ?????????????????????# #?????????????? | | ?????????????????????# #?????????????? | | ?????????????????????# #?????????????? | | ?????????????????????# #?????????????? | | ?????????????????????# !#?????????????? | | ?????????????????????###############?????????????? | +----------------------------------------------------+ Best States ------------- Heat Dissipation 64 Energy Generation 18 Energy Capacity 310 Matter Stores 300 Matter Capacity 300 Sight Range 16 Robot Scan Range 20 Terrain Scan Density 210 Armor Coverage 150 Resistance: TH 20 Core Shielding 20 Power Shielding 90 Phase Shifting 5 Evasion (%) 63 Target Analysis 5 Recoil Reduction 2 Salvage Targeting 4 Relay Coupler Types 2 Relay Coupler Value 91 Item Schematics ----------------- None Robot Schematics ------------------ None Fabricated ------------ Nothing Repaired ---------- Nothing Studied --------- None Alien Tech Used ----------------- None Achievements -------------- None Challenges ------------ None Game ------ Seed TripodDeflectorClaymores Manual? 0 Play Time 00:45:31 Cumulative 296.4 hours Start 2026.09.01 @ 15:49:00 End 2026.09.01 @ 16:31:06 Sessions 1 Manual Loads 0 Difficulty Rogue Special Mode None Game No. 373 Rogue 373 Adventurer 0 Explorer 0 Win Type - Total 8 Types 7/0/0/1/0/0/0/0/0/0 Lore% 81 Gallery% 68 Achievement% 56 Wizard Run 0 Options --------- Layout 2 ASCII 0 Keyboard 0 Movement Vi Keybinds 0 Fullscreen 1 Font 24/Smallcaps Map View 50x44 Zoom Use 0% Tactical HUD 1 Map Filters NONE Filters NONE Steam 1 RUN: a03a2ebb-c0ca-48f3-91b9-9fff477f008f